[Event "Early-Titled-Tuesday-Blitz-March-05-2024"]
[Site "Chess.com"]
[Date "2024.03.05"]
[Round "11"]
[White "EvgenyBurmakin"]
[Black "santosalberto1987"]
[Result "0-1"]
[WhiteElo "2347"]
[BlackElo "2531"]
[TimeControl "180+1"]
[EndTime "10:10:23 PST"]
[Termination "santosalberto1987 won by resignation"]

1. e4 {[%clk 0:03:00.9]} 1... e6 {[%clk 0:03:00.1]} 2. d4 {[%clk 0:03:00.3]}
2... d5 {[%clk 0:03:00.3]} 3. Nd2 {[%clk 0:03:00.4]} 3... c5 {[%clk 0:03:00.2]}
4. Ngf3 {[%clk 0:02:59.2]} 4... cxd4 {[%clk 0:02:57.2]} 5. exd5 {[%clk
0:02:58.2]} 5... Qxd5 {[%clk 0:02:52.6]} 6. Bc4 {[%clk 0:02:57.7]} 6... Qd6
{[%clk 0:02:52.3]} 7. O-O {[%clk 0:02:57.4]} 7... Nf6 {[%clk 0:02:52]} 8. Re1
{[%clk 0:02:57.5]} 8... Nc6 {[%clk 0:02:51.6]} 9. Nb3 {[%clk 0:02:54.5]} 9...
Bd7 {[%clk 0:02:49.4]} 10. Nbxd4 {[%clk 0:02:45.1]} 10... Nxd4 {[%clk
0:02:49.3]} 11. Qxd4 {[%clk 0:02:29.3]} 11... Qxd4 {[%clk 0:02:48.4]} 12. Nxd4
{[%clk 0:02:30.2]} 12... Rc8 {[%clk 0:02:48.5]} 13. Bb3 {[%clk 0:02:29.2]} 13...
Bc5 {[%clk 0:02:47.3]} 14. Nf5 {[%clk 0:02:02.1]} 14... O-O {[%clk 0:02:44.6]}
15. Ne3 {[%clk 0:01:58.9]} 15... Bc6 {[%clk 0:02:39.9]} 16. Bd2 {[%clk
0:01:58.4]} 16... Ne4 {[%clk 0:02:36.5]} 17. Rad1 {[%clk 0:01:48.2]} 17... Nxd2
{[%clk 0:02:30.4]} 18. Rxd2 {[%clk 0:01:49.1]} 18... Rfd8 {[%clk 0:02:26]} 19.
Red1 {[%clk 0:01:45.4]} 19... Rxd2 {[%clk 0:02:25.3]} 20. Rxd2 {[%clk
0:01:46.3]} 20... Kf8 {[%clk 0:02:20.4]} 21. Kf1 {[%clk 0:01:30.8]} 21... Ke7
{[%clk 0:02:16.9]} 22. Ke2 {[%clk 0:01:30.3]} 22... Bxe3 {[%clk 0:02:12.1]} 23.
Kxe3 {[%clk 0:01:25.6]} 23... Bxg2 {[%clk 0:02:11.2]} 24. f3 {[%clk 0:01:17.3]}
24... Bh3 {[%clk 0:02:10.3]} 25. Rd4 {[%clk 0:01:03.3]} 25... Bf5 {[%clk
0:02:06]} 26. Ra4 {[%clk 0:00:58.4]} 26... a6 {[%clk 0:01:50.6]} 27. Rb4 {[%clk
0:00:54.8]} 27... Rc7 {[%clk 0:01:47.5]} 28. c3 {[%clk 0:00:54.4]} 28... e5
{[%clk 0:01:44.8]} 29. a4 {[%clk 0:00:48.1]} 29... Bd7 {[%clk 0:01:35.9]} 30. a5
{[%clk 0:00:46.1]} 30... Bc6 {[%clk 0:01:35.6]} 31. Rh4 {[%clk 0:00:37.1]} 31...
h6 {[%clk 0:01:34.3]} 32. Rg4 {[%clk 0:00:35.9]} 32... g5 {[%clk 0:01:33.8]} 33.
h4 {[%clk 0:00:31.5]} 33... f5 {[%clk 0:01:17.9]} 34. Rg1 {[%clk 0:00:30.1]}
34... Kf6 {[%clk 0:01:13.7]} 35. hxg5+ {[%clk 0:00:14.7]} 35... hxg5 {[%clk
0:01:14.6]} 36. Rd1 {[%clk 0:00:13.6]} 36... Rd7 {[%clk 0:01:09]} 37. Rg1 {[%clk
0:00:12.3]} 37... f4+ {[%clk 0:01:07.3]} 38. Ke2 {[%clk 0:00:11.7]} 38... e4
{[%clk 0:01:03]} 39. fxe4 {[%clk 0:00:10.7]} 39... Bxe4 {[%clk 0:01:03.2]} 40.
Bc4 {[%clk 0:00:08.3]} 40... Kf5 {[%clk 0:00:58.7]} 41. b4 {[%clk 0:00:06.6]}
41... g4 {[%clk 0:00:57.9]} 42. b5 {[%clk 0:00:04.9]} 42... axb5 {[%clk
0:00:51.4]} 43. Bxb5 {[%clk 0:00:05.8]} 43... Bf3+ {[%clk 0:00:42.2]} 44. Kf2
{[%clk 0:00:03.9]} 44... Rd2+ {[%clk 0:00:41.8]} 45. Ke1 {[%clk 0:00:02.9]}
45... Rd1+ {[%clk 0:00:40.8]} 46. Kf2 {[%clk 0:00:03.4]} 46... g3+ {[%clk
0:00:37.5]} 47. Rxg3 {[%clk 0:00:03.4]} 47... fxg3+ {[%clk 0:00:34.8]} 48. Kxf3
{[%clk 0:00:03.9]} 48... Rg1 {[%clk 0:00:28.1]} 49. a6 {[%clk 0:00:02.1]} 49...
bxa6 {[%clk 0:00:27.5]} 50. Bxa6 {[%clk 0:00:03]} 50... Kg5 {[%clk 0:00:26.4]}
51. c4 {[%clk 0:00:02.8]} 51... Kh4 {[%clk 0:00:26.1]} 52. Bb7 {[%clk
0:00:02.3]} 52... Rc1 {[%clk 0:00:20.2]} 53. Bd5 {[%clk 0:00:01.5]} 53... Kh3
{[%clk 0:00:19.3]} 54. Ke3 {[%clk 0:00:01.1]} 54... Rxc4 {[%clk 0:00:11.1]} 55.
Bxc4 {[%clk 0:00:02]} 55... g2 {[%clk 0:00:11.1]} 56. Kf2 {[%clk 0:00:01.6]}
56... Kh2 {[%clk 0:00:11]} 57. Bf1 {[%clk 0:00:02]} 57... g1=Q+ {[%clk
0:00:10.8]} 58. Ke1 {[%clk 0:00:02.7]} 58... Kg3 {[%clk 0:00:09.4]} 59. Ke2
{[%clk 0:00:01.1]} 59... Qf2+ {[%clk 0:00:09.1]} 0-1

[Event "Early-Titled-Tuesday-Blitz-March-05-2024"]
[Site "Chess.com"]
[Date "2024.03.05"]
[Round "11"]
[White "enriquebutti"]
[Black "tolimachess"]
[Result "0-1"]
[WhiteElo "2212"]
[BlackElo "2421"]
[TimeControl "180+1"]
[EndTime "10:10:25 PST"]
[Termination "tolimachess won by resignation"]

1. d4 {[%clk 0:03:00.1]} 1... d6 {[%clk 0:02:57.4]} 2. e4 {[%clk 0:02:59]} 2...
e5 {[%clk 0:02:56.1]} 3. c3 {[%clk 0:02:56.7]} 3... Nf6 {[%clk 0:02:49.4]} 4.
Bd3 {[%clk 0:02:56.1]} 4... Be7 {[%clk 0:02:46]} 5. Nf3 {[%clk 0:02:53.1]} 5...
Nbd7 {[%clk 0:02:45.3]} 6. h3 {[%clk 0:02:50.1]} 6... O-O {[%clk 0:02:44.2]} 7.
O-O {[%clk 0:02:47.2]} 7... c6 {[%clk 0:02:43.9]} 8. Re1 {[%clk 0:02:46.3]} 8...
Qc7 {[%clk 0:02:44.3]} 9. Nbd2 {[%clk 0:02:44.7]} 9... Re8 {[%clk 0:02:43.8]}
10. Nf1 {[%clk 0:02:44.2]} 10... Nf8 {[%clk 0:02:43.9]} 11. Ng3 {[%clk
0:02:43.7]} 11... Ng6 {[%clk 0:02:44.5]} 12. Be3 {[%clk 0:02:37.1]} 12... a5
{[%clk 0:02:40.4]} 13. a4 {[%clk 0:02:35.6]} 13... h6 {[%clk 0:02:35]} 14. Qd2
{[%clk 0:02:34.4]} 14... Bf8 {[%clk 0:02:33.2]} 15. Nh2 {[%clk 0:02:21.3]} 15...
d5 {[%clk 0:02:30.4]} 16. exd5 {[%clk 0:02:18.2]} 16... Nxd5 {[%clk 0:02:30.2]}
17. Bxg6 {[%clk 0:02:12]} 17... fxg6 {[%clk 0:02:31.1]} 18. dxe5 {[%clk
0:02:11.3]} 18... Rxe5 {[%clk 0:02:19.7]} 19. Bd4 {[%clk 0:02:08.5]} 19... Rxe1+
{[%clk 0:02:18.5]} 20. Rxe1 {[%clk 0:02:07.6]} 20... Bd7 {[%clk 0:02:10.3]} 21.
Nf3 {[%clk 0:02:02.4]} 21... Qf4 {[%clk 0:02:07.2]} 22. Qc2 {[%clk 0:01:50.6]}
22... Bf5 {[%clk 0:02:03.9]} 23. Nxf5 {[%clk 0:01:49.2]} 23... Qxf5 {[%clk
0:02:03.7]} 24. Qb3 {[%clk 0:01:46.9]} 24... Qc8 {[%clk 0:01:26.7]} 25. Ne5
{[%clk 0:01:40.7]} 25... Kh7 {[%clk 0:01:26.8]} 26. Qc2 {[%clk 0:01:36.1]} 26...
Qf5 {[%clk 0:01:25]} 27. Qb3 {[%clk 0:01:34.2]} 27... Qc8 {[%clk 0:01:24]} 28.
c4 {[%clk 0:01:30.6]} 28... Nf4 {[%clk 0:01:18.6]} 29. Be3 {[%clk 0:01:28.6]}
29... Ne6 {[%clk 0:01:13.2]} 30. Qc2 {[%clk 0:01:24.3]} 30... Qe8 {[%clk
0:01:13.2]} 31. Bb6 {[%clk 0:01:18]} 31... Bb4 {[%clk 0:01:11.9]} 32. Re3 {[%clk
0:01:15.9]} 32... Nf8 {[%clk 0:01:03.8]} 33. Bd4 {[%clk 0:01:01.2]} 33... Rd8
{[%clk 0:01:01]} 34. Qe4 {[%clk 0:00:56]} 34... Qe6 {[%clk 0:00:55.7]} 35. Rg3
{[%clk 0:00:49.9]} 35... Qf5 {[%clk 0:00:49]} 36. Qe3 {[%clk 0:00:44.1]} 36...
g5 {[%clk 0:00:44.1]} 37. Rf3 {[%clk 0:00:41.3]} 37... Qb1+ {[%clk 0:00:43.6]}
38. Kh2 {[%clk 0:00:40.9]} 38... Ne6 {[%clk 0:00:44]} 39. Bc3 {[%clk 0:00:37.9]}
39... Bd6 {[%clk 0:00:43.5]} 40. g3 {[%clk 0:00:35.2]} 40... Rf8 {[%clk
0:00:37.6]} 41. Rxf8 {[%clk 0:00:33.7]} 41... Nxf8 {[%clk 0:00:38.5]} 42. Qf3
{[%clk 0:00:33]} 42... Ng6 {[%clk 0:00:31.4]} 43. Ng4 {[%clk 0:00:29.3]} 43...
Kg8 {[%clk 0:00:19.5]} 44. Qe3 {[%clk 0:00:26.5]} 44... Qf5 {[%clk 0:00:17.4]}
45. Qb6 {[%clk 0:00:23]} 45... h5 {[%clk 0:00:16]} 46. Ne3 {[%clk 0:00:18.3]}
46... Qxf2+ {[%clk 0:00:15.5]} 47. Ng2 {[%clk 0:00:17.9]} 47... Bxg3+ {[%clk
0:00:15.3]} 48. Kh1 {[%clk 0:00:17.3]} 48... Qf1+ {[%clk 0:00:15.4]} 49. Qg1
{[%clk 0:00:16.9]} 49... Qxg1+ {[%clk 0:00:15.5]} 50. Kxg1 {[%clk 0:00:17.8]}
50... Be5 {[%clk 0:00:16.2]} 51. Bxe5 {[%clk 0:00:16]} 51... Nxe5 {[%clk
0:00:17.1]} 52. b3 {[%clk 0:00:16.7]} 52... Kf7 {[%clk 0:00:17.1]} 53. Ne3
{[%clk 0:00:13.9]} 53... Ke6 {[%clk 0:00:16.7]} 54. Kf2 {[%clk 0:00:13.7]} 54...
Nd3+ {[%clk 0:00:16.5]} 55. Ke2 {[%clk 0:00:13.5]} 55... Nc5 {[%clk 0:00:17.1]}
56. Ng2 {[%clk 0:00:11.3]} 56... Nxb3 {[%clk 0:00:16.7]} 57. Kd3 {[%clk
0:00:11.3]} 57... Nc5+ {[%clk 0:00:16.8]} 58. Kd4 {[%clk 0:00:11]} 58... Nxa4
{[%clk 0:00:17.7]} 0-1

[Event "Early-Titled-Tuesday-Blitz-March-05-2024"]
[Site "Chess.com"]
[Date "2024.03.05"]
[Round "11"]
[White "Barmen_EV"]
[Black "isaak2009"]
[Result "1/2-1/2"]
[WhiteElo "2494"]
[BlackElo "2729"]
[TimeControl "180+1"]
[EndTime "10:10:29 PST"]
[Termination "Game drawn by repetition"]

1. e4 {[%clk 0:02:55.7]} 1... e5 {[%clk 0:02:59.7]} 2. Nf3 {[%clk 0:02:54.7]}
2... Nc6 {[%clk 0:03:00.2]} 3. d4 {[%clk 0:02:54.2]} 3... exd4 {[%clk
0:02:59.8]} 4. Bc4 {[%clk 0:02:54.7]} 4... Nf6 {[%clk 0:02:59]} 5. O-O {[%clk
0:02:55.3]} 5... Nxe4 {[%clk 0:02:59.1]} 6. Nc3 {[%clk 0:02:56]} 6... Nd6 {[%clk
0:02:45.4]} 7. Re1+ {[%clk 0:02:47.9]} 7... Be7 {[%clk 0:02:45.3]} 8. Nd5 {[%clk
0:02:32]} 8... Nxc4 {[%clk 0:02:23.9]} 9. Nxe7 {[%clk 0:02:30.9]} 9... Nxe7
{[%clk 0:02:24.4]} 10. Qxd4 {[%clk 0:02:31.3]} 10... O-O {[%clk 0:02:21.7]} 11.
Qxc4 {[%clk 0:02:23]} 11... d5 {[%clk 0:02:21.7]} 12. Qf4 {[%clk 0:02:17.4]}
12... Ng6 {[%clk 0:02:19.8]} 13. Qg3 {[%clk 0:02:17.4]} 13... c6 {[%clk
0:02:16.4]} 14. Be3 {[%clk 0:02:03.4]} 14... Bf5 {[%clk 0:02:15.4]} 15. c3
{[%clk 0:02:02.4]} 15... Qd7 {[%clk 0:02:14.7]} 16. Bd4 {[%clk 0:01:59.8]} 16...
Rfe8 {[%clk 0:02:04.1]} 17. Ne5 {[%clk 0:01:57.8]} 17... Nxe5 {[%clk 0:02:01.3]}
18. Bxe5 {[%clk 0:01:58.7]} 18... Bg6 {[%clk 0:01:59.2]} 19. h4 {[%clk
0:01:53.9]} 19... Qf5 {[%clk 0:01:49.7]} 20. Bd4 {[%clk 0:01:42.4]} 20... b6
{[%clk 0:01:48.6]} 21. b4 {[%clk 0:01:41.4]} 21... h5 {[%clk 0:01:40.4]} 22. Qc7
{[%clk 0:01:31.1]} 22... Qg4 {[%clk 0:01:31.2]} 23. Qxc6 {[%clk 0:01:14.8]}
23... Be4 {[%clk 0:01:27.2]} 24. f3 {[%clk 0:01:11.4]} 24... Bxf3 {[%clk
0:01:26]} 25. Rxe8+ {[%clk 0:01:07.8]} 25... Rxe8 {[%clk 0:01:25.6]} 26. Qxe8+
{[%clk 0:01:07.4]} 26... Kh7 {[%clk 0:01:26.2]} 27. Kf2 {[%clk 0:00:36.7]} 27...
Qxg2+ {[%clk 0:01:25.6]} 28. Ke1 {[%clk 0:00:36.8]} 28... Qh1+ {[%clk
0:01:25.6]} 29. Kf2 {[%clk 0:00:37.2]} 29... Qg2+ {[%clk 0:01:22.9]} 30. Ke1
{[%clk 0:00:37.3]} 30... Qb2 {[%clk 0:00:47]} 31. Rd1 {[%clk 0:00:20.4]} 31...
Qc2 {[%clk 0:00:31.3]} 32. Rd2 {[%clk 0:00:18.7]} 32... Qc1+ {[%clk 0:00:31.5]}
33. Kf2 {[%clk 0:00:19.2]} 33... Qxd2+ {[%clk 0:00:32.4]} 34. Kxf3 {[%clk
0:00:19.8]} 34... Qd1+ {[%clk 0:00:31.3]} 35. Qe2 {[%clk 0:00:19]} 35... Qh1+
{[%clk 0:00:30.4]} 36. Qg2 {[%clk 0:00:19.6]} 36... Qd1+ {[%clk 0:00:29.5]} 37.
Ke3 {[%clk 0:00:19.7]} 37... Qe1+ {[%clk 0:00:23.7]} 38. Kf3 {[%clk 0:00:15.7]}
38... Qd1+ {[%clk 0:00:22.4]} 39. Kg3 {[%clk 0:00:16.1]} 39... Qg4+ {[%clk
0:00:22.5]} 40. Kf2 {[%clk 0:00:14.7]} 40... Qf4+ {[%clk 0:00:14]} 41. Ke2
{[%clk 0:00:13]} 41... f6 {[%clk 0:00:11.1]} 42. Qf2 {[%clk 0:00:10.2]} 42...
Qe4+ {[%clk 0:00:11]} 43. Kd2 {[%clk 0:00:10.5]} 43... Qg4 {[%clk 0:00:10.6]}
44. a4 {[%clk 0:00:09]} 44... Qe4 {[%clk 0:00:07.7]} 45. a5 {[%clk 0:00:07.3]}
45... bxa5 {[%clk 0:00:08.6]} 46. bxa5 {[%clk 0:00:08]} 46... a6 {[%clk
0:00:09.1]} 47. Qe2 {[%clk 0:00:08]} 47... Qf4+ {[%clk 0:00:09.6]} 48. Kc2
{[%clk 0:00:07.1]} 48... Qxh4 {[%clk 0:00:09.7]} 49. Qxa6 {[%clk 0:00:07.4]}
49... Qh2+ {[%clk 0:00:09.6]} 50. Kb3 {[%clk 0:00:07.8]} 50... Qh1 {[%clk
0:00:07.4]} 51. Qd3+ {[%clk 0:00:08]} 51... g6 {[%clk 0:00:05.4]} 52. a6 {[%clk
0:00:08.2]} 52... Qa1 {[%clk 0:00:04.8]} 53. a7 {[%clk 0:00:07.4]} 53... h4
{[%clk 0:00:05.4]} 54. Qc2 {[%clk 0:00:04.8]} 54... Qa6 {[%clk 0:00:03.8]} 55.
Qa2 {[%clk 0:00:03.1]} 55... Qb5+ {[%clk 0:00:04.2]} 56. Kc2 {[%clk 0:00:03.4]}
56... Qe2+ {[%clk 0:00:04.3]} 57. Kb3 {[%clk 0:00:03.9]} 57... Qb5+ {[%clk
0:00:04.4]} 58. Kc2 {[%clk 0:00:03.6]} 58... Qe2+ {[%clk 0:00:04.6]} 59. Kb1
{[%clk 0:00:04.3]} 59... Qe1+ {[%clk 0:00:03.5]} 60. Kb2 {[%clk 0:00:04.9]}
60... Qe2+ {[%clk 0:00:03.9]} 61. Ka3 {[%clk 0:00:05.5]} 61... Qa6+ {[%clk
0:00:04.4]} 62. Kb3 {[%clk 0:00:04.1]} 62... Qb5+ {[%clk 0:00:04.9]} 1/2-1/2

[Event "Early-Titled-Tuesday-Blitz-March-05-2024"]
[Site "Chess.com"]
[Date "2024.03.05"]
[Round "11"]
[White "maciek_92"]
[Black "Polish_fighter3000"]
[Result "0-1"]
[WhiteElo "2885"]
[BlackElo "3104"]
[TimeControl "180+1"]
[EndTime "10:10:38 PST"]
[Termination "Polish_fighter3000 won by resignation"]

1. c4 {[%clk 0:03:00.9]} 1... Nf6 {[%clk 0:03:00.9]} 2. Nc3 {[%clk 0:03:00.4]}
2... g6 {[%clk 0:03:01.8]} 3. d4 {[%clk 0:02:58.3]} 3... Bg7 {[%clk 0:03:01.5]}
4. e4 {[%clk 0:02:59]} 4... d6 {[%clk 0:03:02]} 5. Be2 {[%clk 0:02:59.2]} 5...
O-O {[%clk 0:03:01.1]} 6. Be3 {[%clk 0:02:59.9]} 6... c5 {[%clk 0:03:00.4]} 7.
d5 {[%clk 0:02:59.9]} 7... e6 {[%clk 0:02:58.2]} 8. dxe6 {[%clk 0:02:44.3]} 8...
Bxe6 {[%clk 0:02:59.1]} 9. h3 {[%clk 0:02:41.4]} 9... Nc6 {[%clk 0:02:24.7]} 10.
Nf3 {[%clk 0:02:41.3]} 10... Qb6 {[%clk 0:02:18.6]} 11. O-O {[%clk 0:02:09.2]}
11... Rad8 {[%clk 0:02:07.2]} 12. Qd2 {[%clk 0:02:04.5]} 12... Rfe8 {[%clk
0:02:00.7]} 13. Rad1 {[%clk 0:01:46.8]} 13... Nd7 {[%clk 0:01:55.1]} 14. Bg5
{[%clk 0:01:35.4]} 14... Rc8 {[%clk 0:01:52.2]} 15. Nb5 {[%clk 0:01:29.3]} 15...
Nde5 {[%clk 0:01:41.3]} 16. Nxd6 {[%clk 0:01:12.4]} 16... Nxf3+ {[%clk
0:01:40.9]} 17. Bxf3 {[%clk 0:01:12.4]} 17... Nd4 {[%clk 0:01:41.7]} 18. Nxc8
{[%clk 0:01:01.6]} 18... Rxc8 {[%clk 0:01:32.2]} 19. Bg4 {[%clk 0:00:52.3]}
19... Bxg4 {[%clk 0:01:31.9]} 20. hxg4 {[%clk 0:00:53.2]} 20... Qe6 {[%clk
0:01:32.3]} 21. f3 {[%clk 0:00:35.1]} 21... Qxc4 {[%clk 0:01:31.7]} 22. b3
{[%clk 0:00:35.2]} 22... Qa6 {[%clk 0:01:27.7]} 23. Rfe1 {[%clk 0:00:31.2]}
23... Be5 {[%clk 0:01:07.6]} 24. Be3 {[%clk 0:00:22.1]} 24... Qe6 {[%clk
0:01:01.8]} 25. Qf2 {[%clk 0:00:19.7]} 25... Bg7 {[%clk 0:00:55]} 26. g5 {[%clk
0:00:19]} 26... a5 {[%clk 0:00:52.4]} 27. Rc1 {[%clk 0:00:17.4]} 27... b6 {[%clk
0:00:49.9]} 28. Qg3 {[%clk 0:00:09.3]} 28... Be5 {[%clk 0:00:45.4]} 29. f4
{[%clk 0:00:09.3]} 29... Bg7 {[%clk 0:00:44.3]} 30. Bxd4 {[%clk 0:00:08.5]}
30... Bxd4+ {[%clk 0:00:45.1]} 31. Kh2 {[%clk 0:00:09.1]} 31... a4 {[%clk
0:00:25.9]} 32. e5 {[%clk 0:00:09.3]} 32... b5 {[%clk 0:00:21.4]} 33. bxa4
{[%clk 0:00:09.3]} 33... bxa4 {[%clk 0:00:21.3]} 34. a3 {[%clk 0:00:08.6]} 34...
Qb3 {[%clk 0:00:20]} 35. Qg4 {[%clk 0:00:07.9]} 35... Rf8 {[%clk 0:00:16.9]} 36.
e6 {[%clk 0:00:08]} 36... fxe6 {[%clk 0:00:16.9]} 37. Rxe6 {[%clk 0:00:08]}
37... Be3 {[%clk 0:00:14.6]} 38. Rf1 {[%clk 0:00:07.1]} 38... Bd4 {[%clk
0:00:03.9]} 39. f5 {[%clk 0:00:05.7]} 39... Qd3 {[%clk 0:00:03.3]} 40. Rf3
{[%clk 0:00:03.2]} 40... gxf5 {[%clk 0:00:03.1]} 41. Qh5 {[%clk 0:00:03.4]}
41... Qc4 {[%clk 0:00:02.8]} 42. Re7 {[%clk 0:00:03.3]} 42... Rf7 {[%clk
0:00:02.7]} 43. Re8+ {[%clk 0:00:03.2]} 43... Rf8 {[%clk 0:00:03]} 44. Re7
{[%clk 0:00:03.1]} 44... Rf7 {[%clk 0:00:03.1]} 45. Re8+ {[%clk 0:00:03.5]}
45... Rf8 {[%clk 0:00:03.6]} 46. g6 {[%clk 0:00:04.3]} 46... h6 {[%clk
0:00:02.4]} 47. Re7 {[%clk 0:00:04]} 47... Bg7 {[%clk 0:00:01.7]} 48. Rfe3
{[%clk 0:00:02.3]} 48... Qf4+ {[%clk 0:00:01.5]} 49. Kg1 {[%clk 0:00:01.5]}
49... Bd4 {[%clk 0:00:01.5]} 50. g7 {[%clk 0:00:01.4]} 50... Bxe3+ {[%clk
0:00:01.8]} 51. Kh1 {[%clk 0:00:01]} 51... Qf1+ {[%clk 0:00:02.1]} 52. Kh2
{[%clk 0:00:01.8]} 52... Bf4+ {[%clk 0:00:01.5]} 53. g3 {[%clk 0:00:01.8]} 53...
Qf2+ {[%clk 0:00:01.9]} 54. Kh1 {[%clk 0:00:02.4]} 54... Qf1+ {[%clk 0:00:02.3]}
55. Kh2 {[%clk 0:00:02.9]} 55... Bxg3+ {[%clk 0:00:01.9]} 56. Kxg3 {[%clk
0:00:03.1]} 56... Qg1+ {[%clk 0:00:02.6]} 57. Kf3 {[%clk 0:00:03.6]} 57... Qg4+
{[%clk 0:00:03.2]} 58. Qxg4 {[%clk 0:00:03.6]} 58... fxg4+ {[%clk 0:00:04.1]}
59. Kxg4 {[%clk 0:00:04.2]} 59... Rf7 {[%clk 0:00:04.2]} 60. Re8+ {[%clk
0:00:04.8]} 60... Kxg7 {[%clk 0:00:04.4]} 61. Ra8 {[%clk 0:00:05.7]} 61... Rc7
{[%clk 0:00:04.2]} 62. Rxa4 {[%clk 0:00:06]} 62... c4 {[%clk 0:00:04.7]} 63. Rb4
{[%clk 0:00:05.6]} 63... c3 {[%clk 0:00:04.3]} 64. Rb1 {[%clk 0:00:06.5]} 64...
Kf6 {[%clk 0:00:05]} 65. Rc1 {[%clk 0:00:07.4]} 65... Ke5 {[%clk 0:00:05.4]} 66.
a4 {[%clk 0:00:08.3]} 66... Kd4 {[%clk 0:00:05.9]} 67. Kf3 {[%clk 0:00:06.8]}
67... c2 {[%clk 0:00:05.4]} 68. Ke2 {[%clk 0:00:06.6]} 68... Kc3 {[%clk
0:00:06]} 0-1

[Event "Early-Titled-Tuesday-Blitz-March-05-2024"]
[Site "Chess.com"]
[Date "2024.03.05"]
[Round "11"]
[White "BeardedNM"]
[Black "effefe"]
[Result "0-1"]
[WhiteElo "2212"]
[BlackElo "2385"]
[TimeControl "180+1"]
[EndTime "10:10:38 PST"]
[Termination "effefe won on time"]

1. e4 {[%clk 0:03:00.9]} 1... c5 {[%clk 0:02:54.3]} 2. Nf3 {[%clk 0:03:00.8]}
2... d6 {[%clk 0:02:55.1]} 3. d4 {[%clk 0:03:01.4]} 3... cxd4 {[%clk 0:02:56]}
4. Nxd4 {[%clk 0:03:02.1]} 4... Nf6 {[%clk 0:02:56.8]} 5. Nc3 {[%clk 0:03:02.7]}
5... g6 {[%clk 0:02:57.6]} 6. Be3 {[%clk 0:03:02.8]} 6... Bg7 {[%clk 0:02:58.4]}
7. f3 {[%clk 0:03:03.4]} 7... O-O {[%clk 0:02:59.1]} 8. Qd2 {[%clk 0:03:03.9]}
8... Nc6 {[%clk 0:02:59.8]} 9. Bc4 {[%clk 0:03:04.4]} 9... d5 {[%clk 0:03:00.5]}
10. Nxd5 {[%clk 0:03:01.2]} 10... e5 {[%clk 0:02:53.9]} 11. Nxc6 {[%clk
0:02:49.7]} 11... bxc6 {[%clk 0:02:54.8]} 12. Nxf6+ {[%clk 0:02:49.6]} 12...
Bxf6 {[%clk 0:02:54.7]} 13. Qxd8 {[%clk 0:02:44]} 13... Rxd8 {[%clk 0:02:55.3]}
14. Rd1 {[%clk 0:02:32.6]} 14... Rxd1+ {[%clk 0:02:54.7]} 15. Kxd1 {[%clk
0:02:33]} 15... a5 {[%clk 0:02:53]} 16. c3 {[%clk 0:02:21.6]} 16... a4 {[%clk
0:02:52.9]} 17. Kc2 {[%clk 0:02:17.6]} 17... Be7 {[%clk 0:02:39.2]} 18. Rd1
{[%clk 0:02:17]} 18... Kg7 {[%clk 0:02:39.4]} 19. a3 {[%clk 0:02:03.1]} 19... f5
{[%clk 0:02:39.7]} 20. Bd3 {[%clk 0:01:54.7]} 20... Be6 {[%clk 0:02:37.4]} 21.
exf5 {[%clk 0:01:47.4]} 21... Bb3+ {[%clk 0:02:37.3]} 22. Kd2 {[%clk 0:01:45.2]}
22... Bxd1 {[%clk 0:02:37.9]} 23. Kxd1 {[%clk 0:01:46]} 23... gxf5 {[%clk
0:02:18.4]} 24. Bxf5 {[%clk 0:01:45.6]} 24... Rb8 {[%clk 0:02:15.5]} 25. Kc2
{[%clk 0:01:44.5]} 25... h6 {[%clk 0:02:08.8]} 26. Bd7 {[%clk 0:01:42]} 26... c5
{[%clk 0:01:50.3]} 27. Bxa4 {[%clk 0:01:42.9]} 27... Bd6 {[%clk 0:01:44.6]} 28.
Bc6 {[%clk 0:01:33.2]} 28... h5 {[%clk 0:01:44.7]} 29. Be4 {[%clk 0:01:28.4]}
29... Kf6 {[%clk 0:01:43.4]} 30. h4 {[%clk 0:01:24.8]} 30... Rg8 {[%clk
0:01:40]} 31. Bg5+ {[%clk 0:01:23.3]} 31... Ke6 {[%clk 0:01:39.3]} 32. b4 {[%clk
0:01:18]} 32... cxb4 {[%clk 0:01:38]} 33. axb4 {[%clk 0:01:18]} 33... Rc8 {[%clk
0:01:36.2]} 34. Kb3 {[%clk 0:01:14]} 34... Rb8 {[%clk 0:01:34.6]} 35. Bg6 {[%clk
0:01:01.1]} 35... Rh8 {[%clk 0:01:22.9]} 36. c4 {[%clk 0:00:58.9]} 36... Rb8
{[%clk 0:01:21.3]} 37. Bd2 {[%clk 0:00:45]} 37... Rg8 {[%clk 0:01:16.5]} 38.
Bxh5 {[%clk 0:00:41.7]} 38... Rxg2 {[%clk 0:01:17.2]} 39. Bg4+ {[%clk
0:00:38.4]} 39... Ke7 {[%clk 0:01:15.5]} 40. Bg5+ {[%clk 0:00:36.4]} 40... Kf7
{[%clk 0:01:15.4]} 41. c5 {[%clk 0:00:35.4]} 41... Bf8 {[%clk 0:01:10.8]} 42. c6
{[%clk 0:00:21.5]} 42... Bd6 {[%clk 0:01:06.3]} 43. Bd8 {[%clk 0:00:18.7]} 43...
Rg1 {[%clk 0:00:40.7]} 44. c7 {[%clk 0:00:17.9]} 44... Bxc7 {[%clk 0:00:35.7]}
45. Bxc7 {[%clk 0:00:18]} 45... e4 {[%clk 0:00:33.9]} 46. Bh5+ {[%clk
0:00:16.1]} 46... Ke6 {[%clk 0:00:34]} 47. fxe4 {[%clk 0:00:16.3]} 47... Rh1
{[%clk 0:00:30.9]} 48. Bg4+ {[%clk 0:00:15.8]} 48... Ke7 {[%clk 0:00:29.8]} 49.
h5 {[%clk 0:00:16.2]} 49... Rh4 {[%clk 0:00:29.2]} 50. Bf3 {[%clk 0:00:15]}
50... Rh3 {[%clk 0:00:27.9]} 51. Kc4 {[%clk 0:00:13.8]} 51... Rxf3 {[%clk
0:00:28.5]} 52. b5 {[%clk 0:00:13.3]} 52... Kd7 {[%clk 0:00:24.9]} 53. b6 {[%clk
0:00:13]} 53... Kc6 {[%clk 0:00:25]} 54. h6 {[%clk 0:00:11.7]} 54... Rh3 {[%clk
0:00:23.6]} 55. Bf4 {[%clk 0:00:11.3]} 55... Rh4 {[%clk 0:00:23.7]} 56. Bg5
{[%clk 0:00:09.3]} 56... Rxe4+ {[%clk 0:00:23.1]} 57. Kd3 {[%clk 0:00:09.3]}
57... Re1 {[%clk 0:00:15.7]} 58. Bf6 {[%clk 0:00:08]} 58... Rh1 {[%clk
0:00:15.2]} 59. Bg7 {[%clk 0:00:06]} 59... Kxb6 {[%clk 0:00:15.5]} 60. Ke4
{[%clk 0:00:06.4]} 60... Kc6 {[%clk 0:00:13.3]} 61. Kf5 {[%clk 0:00:06.9]} 61...
Kd7 {[%clk 0:00:11.9]} 62. Kg6 {[%clk 0:00:07.3]} 62... Ke6 {[%clk 0:00:12.3]}
63. h7 {[%clk 0:00:07.7]} 63... Rg1+ {[%clk 0:00:10.6]} 64. Kh6 {[%clk
0:00:07.7]} 64... Kf5 {[%clk 0:00:08.4]} 65. Bf8 {[%clk 0:00:02.7]} 65... Rg6+
{[%clk 0:00:03.9]} 66. Kh5 {[%clk 0:00:02.4]} 66... Rg1 {[%clk 0:00:03.3]} 0-1